bitfinex-derivatives/quotes_ETHF0:USTF0_20241230
["timestamp","ask_amount","ask_price","bid_price","bid_amount"]
[1735533472823,0.2945,3403.2,3403.0,0.29452]
[1735533473829,0.6052,3403.3,3402.7,1.7977]
[1735533474127,0.29451,3403.1,3402.9,0.29453]
[1735533474530,0.6014,3403.0,3402.9,0.29453]
[1735533480540,0.6014,3403.0,3402.5,6.91684933]
[1735533480828,3.2078,3402.8,3402.5,6.91684933]
[1735533481036,0.93695,3402.7,3402.5,7.21140933]
[1735533481240,0.6424,3402.7,3402.5,6.91684933]
[1735533481436,0.6424,3402.7,3402.6,0.29455]
[1735533483138,0.93695,3402.7,3402.4,0.29457]
[1735533483735,0.29456,3402.6,3402.3,0.29457]
[1735533483937,0.29456,3402.6,3402.4,0.29457]
[1735533484240,0.6252,3402.5,3402.4,0.29457]
[1735533487337,6.65726244,3403.2,3402.4,3.2078]
[1735533487535,0.6076,3403.1,3403.0,0.29451]
[1735533487730,6.65726244,3403.2,3403.1,0.29451]
[1735533487936,6.65726244,3403.2,3403.1,16.19451]
[1735533488136,3.2078,3403.2,3403.1,16.19451]
[1735533488743,4.05706244,3403.5,3403.4,0.29448]
[1735533489550,0.6076,3403.5,3403.4,0.29448]
[1735533490444,2.96764893,3403.5,3402.9,3.2078]
[1735533490647,3.26212893,3403.5,3403.3,0.29449]
[1735533490844,0.90208,3403.5,3403.3,0.29449]
[1735533494049,0.6076,3403.5,3403.3,0.29449]
[1735533495446,0.6076,3403.5,3402.9,10.12464933]
[1735533495651,0.6076,3403.5,3403.4,0.29448]
[1735533503554,0.6076,3403.5,3403.2,3.2078]
[1735533503755,0.6076,3403.5,3403.3,0.29449]
[1735533503953,0.6076,3403.5,3403.4,0.29448]
[1735533504653,1.2522,3403.6,3403.4,0.29448]
[1735533504847,1.2522,3403.6,3403.5,0.29448]
[1735533505055,1.2522,3403.6,3403.3,0.5844]
[1735533505250,1.2522,3403.6,3403.4,0.29448]
[1735533506354,1.54667,3403.6,3403.4,0.29448]
[1735533508553,1.2522,3403.6,3403.4,0.29448]
[1735533508753,1.54667,3403.6,3403.4,0.29448]
[1735533510961,1.54667,3403.6,3403.3,0.5844]
[1735533510962,1.2522,3403.6,3403.5,0.29447]
[1735533511149,5.80951137,3403.8,3403.3,0.5844]
[1735533511150,3.44946244,3403.8,3403.3,0.5844]
[1735533511354,3.44946244,3403.8,3403.7,0.29446]
[1735533511858,3.44946244,3403.8,3403.7,16.19446]
[1735533512556,3.44946244,3403.8,3403.7,0.29446]
[1735533512750,3.2078,3404.0,3403.9,0.29444]
[1735533514256,3.2078,3404.0,3403.6,22.81684933]
[1735533514257,3.2078,3404.0,3403.6,15.9]
[1735533514559,0.29446,3403.7,3403.5,7.21131933]
[1735533515059,0.5873,3403.6,3403.5,7.21131933]
[1735533515256,0.88177,3403.6,3403.5,6.91684933]
[1735533515451,3.7951,3403.6,3403.2,6.91684933]
[1735533515657,1.54328,3403.5,3403.3,0.29448]
[1735533518261,1.54328,3403.5,3403.0,6.91684933]
[1735533518262,1.2488,3403.5,3403.0,6.91684933]
[1735533518464,0.29451,3403.1,3403.0,6.91684933]
[1735533518757,3.50231,3403.1,3403.0,6.91684933]
[1735533518957,4.13281,3403.1,3403.0,6.91684933]
[1735533520062,7.28776244,3403.1,3402.5,0.29456]
[1735533520266,0.29454,3402.8,3402.5,0.29456]
[1735533520562,0.5963,3402.7,3402.4,3.2078]
[1735533520761,0.89084,3402.7,3402.4,3.50236]
[1735533521065,0.6206,3402.6,3402.4,3.50236]
[1735533522562,0.91515,3402.6,3402.4,3.50236]
[1735533522863,0.91515,3402.6,3402.4,3.2078]
[1735533523062,0.6206,3402.6,3402.4,3.50237]
[1735533524660,0.29456,3402.5,3402.4,3.2078]
[1735533528764,0.6206,3402.6,3402.2,0.17590172]
[1735533528967,0.29457,3402.4,3402.2,0.17590172]
[1735533529769,0.6206,3402.6,3402.2,0.17590172]
[1735533529969,0.6206,3402.6,3402.4,0.29457]
[1735533530267,0.91516,3402.6,3402.3,0.29457]
[1735533530470,0.29457,3402.5,3402.3,0.29457]
[1735533530870,0.29457,3402.5,3402.2,0.47048172]
[1735533532365,0.6206,3402.6,3402.2,0.17590172]
[1735533532668,0.6206,3402.6,3402.5,0.29456]
[1735533534574,3.2078,3402.7,3402.6,0.29455]
[1735533535775,3.2078,3402.7,3402.2,7.71155105]
[1735533536077,3.50234,3402.7,3402.5,0.29455]
[1735533536276,0.29455,3402.6,3402.4,0.29457]
[1735533536476,3.2078,3402.7,3402.2,7.71155105]
[1735533536678,3.2078,3402.7,3402.2,0.79470172]
[1735533536975,0.29454,3402.8,3402.6,0.29455]
[1735533537174,0.626,3402.9,3402.4,3.2078]
[1735533537472,1.237,3403.1,3402.9,0.29452]
[1735533537677,2.13482,3403.1,3402.9,0.29452]
[1735533538679,1.8403,3403.1,3402.9,0.29452]
[1735533539477,1.8403,3403.1,3403.0,0.29452]
[1735533539785,4.06226244,3403.5,3403.4,0.29448]
[1735533539987,4.06226244,3403.5,3403.4,3.50228]
[1735533540386,3.44946244,3403.5,3403.4,3.50228]
[1735533540788,3.44946244,3403.5,3403.4,3.2078]
[1735533541087,0.6018,3403.7,3403.4,3.2078]
[1735533541283,0.29447,3403.6,3403.4,3.2078]
[1735533542286,0.89626,3403.7,3403.4,3.50228]
[1735533542882,0.6018,3403.7,3403.4,3.2078]
[1735533543387,0.5805,3403.8,3403.7,0.29446]
[1735533543777,1.50813,3404.1,3403.9,0.29444]
[1735533543982,1.8463,3404.1,3403.4,3.2078]
[1735533544185,2.14073,3404.1,3403.8,0.29444]
[1735533545184,1.8463,3404.1,3403.4,3.2078]
[1735533545384,1.8463,3404.1,3403.9,0.29443]
[1735533545977,1.2335,3404.1,3403.9,0.29444]
[1735533546990,1.52792,3404.1,3403.4,7.82567237]
[1735533547293,0.29443,3404.0,3403.7,0.29445]
[1735533547589,1.2335,3404.1,3403.4,7.82567237]
[1735533547791,0.29443,3404.0,3403.6,0.29446]
[1735533548590,1.2335,3404.1,3403.5,0.29447]
[1735533548787,0.29445,3403.8,3403.5,0.29447]
[1735533549683,1.2335,3404.1,3403.4,3.2078]
[1735533549887,0.29445,3403.8,3403.3,4.91236237]
[1735533550085,0.89146,3403.7,3403.4,3.50228]
[1735533550391,0.89146,3403.7,3403.4,0.29448]
[1735533550691,0.29448,3403.4,3403.2,4.61787237]
[1735533550990,0.92439,3403.3,3403.2,4.61787237]
[1735533551687,0.92439,3403.3,3403.0,8.12018237]
[1735533551990,0.92439,3403.3,3403.1,0.29451]
[1735533552188,0.6299,3403.3,3403.1,0.29451]
[1735533552588,0.6299,3403.3,3403.2,0.2945]
[1735533554091,0.6299,3403.3,3403.1,0.2945]
[1735533557485,0.6299,3403.3,3403.2,0.2945]
[1735533558286,0.6039,3403.6,3403.1,0.29451]
[1735533558591,0.6039,3403.6,3403.4,3.50228]
[1735533558793,0.6039,3403.6,3403.5,0.29447]
[1735533559602,0.6039,3403.6,3403.4,19.1078]
[1735533559896,0.6039,3403.6,3403.5,0.29447]
[1735533560290,0.6039,3403.6,3403.4,3.2078]
[1735533560497,0.6039,3403.6,3403.1,15.9]
[1735533560993,0.29449,3403.4,3403.1,16.1945]
[1735533561388,0.6039,3403.6,3403.1,15.9]
[1735533561594,0.6039,3403.6,3403.5,0.29447]
[1735533562094,0.29448,3403.5,3403.2,0.29449]
[1735533562291,0.2945,3403.3,3403.0,0.29451]
[1735533562490,0.9129,3403.2,3403.1,4.61787237]
[1735533563495,0.6184,3403.2,3403.1,4.61787237]
[1735533563797,0.6184,3403.2,3403.1,4.91238237]
[1735533563989,0.6184,3403.2,3403.1,0.29451]
[1735533564988,0.6039,3403.6,3402.9,3.2078]
[1735533565196,1.2015,3403.6,3403.4,0.29448]
[1735533565493,1.49597,3403.6,3403.4,0.29448]
[1735533567089,1.2015,3403.6,3403.4,0.29448]
[1735533567892,1.2015,3403.6,3403.3,3.2078]
[1735533568101,1.2015,3403.6,3403.5,0.29447]
[1735533568590,1.2015,3403.6,3403.4,0.29448]
[1735533568789,1.49597,3403.6,3403.4,0.29448]
[1735533569597,1.2015,3403.6,3403.3,3.2078]
[1735533569796,1.2015,3403.6,3403.5,0.29447]
[1735533570094,2.30546208,3404.0,3403.9,0.29444]
[1735533570702,2.30546208,3404.0,3403.9,2.65448893]
[1735533571596,4.4232,3404.7,3403.9,13.62828094]
[1735533571798,4.4232,3404.7,3404.5,0.29438]
[1735533572597,4.71757,3404.7,3404.0,15.9]
[1735533573002,4.4232,3404.7,3404.0,20.51597635]
[1735533573201,4.4232,3404.7,3404.1,0.29442]
[1735533573404,4.4232,3404.7,3404.0,20.51597635]
[1735533573603,4.4232,3404.7,3404.4,0.29439]
[1735533574406,4.71757,3404.7,3404.4,0.29439]
[1735533574902,0.29438,3404.6,3404.2,0.29441]
[1735533575503,4.4232,3404.7,3404.0,4.61597635]
[1735533575801,0.29439,3404.5,3404.0,4.61597635]
[1735533576002,0.29439,3404.5,3404.1,0.29442]
[1735533576906,0.6319,3404.4,3403.8,4.61597635]
[1735533577106,0.29441,3404.3,3404.0,0.29443]
[1735533577602,0.9263,3404.4,3404.1,0.29442]
[1735533577806,0.29438,3404.6,3404.2,0.29441]
[1735533578006,0.92038,3404.6,3404.2,0.29441]
[1735533578199,0.29439,3404.5,3404.2,0.29441]
[1735533579508,0.626,3404.6,3404.5,0.29439]
[1735533580403,3.8181,3404.7,3404.1,16.5292]
[1735533580604,3.8181,3404.7,3404.6,0.29438]
[1735533580805,3.2078,3404.7,3404.6,0.29438]
[1735533581204,2.30546208,3405.0,3404.9,0.29435]
[1735533581704,2.30546208,3405.3,3405.2,0.29433]
[1735533581902,2.30546208,3405.3,3405.2,3.50213]
[1735533583704,1.8181,3405.8,3405.2,3.2078]
[1735533583905,2.11238,3405.8,3405.4,0.2943]
[1735533584909,2.11238,3405.8,3405.2,3.2078]
[1735533585208,2.11238,3405.8,3405.5,0.2943]
[1735533587515,1.8181,3405.8,3405.3,3.2078]
[1735533587713,0.2943,3405.6,3405.3,3.50212]
[1735533588115,1.8181,3405.8,3405.3,3.2078]
[1735533588314,0.2943,3405.5,3405.3,3.2078]
[1735533589414,1.8181,3405.8,3405.3,3.2078]
[1735533589718,0.29431,3405.4,3405.3,3.2078]
[1735533590714,0.2943,3405.6,3405.3,3.50212]
[1735533592115,0.29431,3405.4,3405.3,3.2078]
[1735533592316,0.2943,3405.5,3405.3,3.2078]
[1735533592818,5.56784893,3405.7,3404.8,3.2078]
[1735533593321,0.29433,3405.2,3404.9,0.29435]
[1735533593618,1.7935,3405.1,3404.9,0.29435]
[1735533594015,1.7935,3405.1,3404.8,3.2078]
[1735533594219,0.29434,3405.0,3404.8,3.2078]
[1735533594822,0.29435,3404.9,3404.8,3.2078]
[1735533596723,0.29435,3405.0,3404.8,3.2078]
[1735533596915,1.7935,3405.1,3404.9,0.29434]
[1735533597116,1.7935,3405.1,3404.8,3.2078]
[1735533597317,1.7935,3405.1,3404.9,0.29435]
[1735533597817,2.08784,3405.1,3404.9,0.29435]
[1735533599123,2.08784,3405.1,3404.8,3.2078]
[1735533599328,1.7935,3405.1,3404.8,3.2078]
[1735533599515,0.29435,3404.9,3404.8,3.2078]
[1735533601525,0.29435,3405.0,3404.8,3.2078]
[1735533601727,0.29435,3404.9,3404.8,3.2078]
[1735533602424,0.29435,3405.0,3404.8,3.50216]
[1735533602619,1.7935,3405.1,3405.0,0.29434]
[1735533602823,3.2078,3405.3,3404.9,0.6025]
[1735533603026,3.50212,3405.3,3405.0,0.5847]
[1735533603219,3.50212,3405.3,3405.0,0.29434]
[1735533603430,0.29433,3405.2,3404.8,3.2078]
[1735533603624,1.2381,3405.1,3404.9,0.29435]
[1735533604027,0.6023,3405.1,3405.0,0.29434]
[1735533605126,0.6023,3405.1,3404.9,0.29435]
[1735533605432,0.6174,3405.0,3404.9,0.29435]
[1735533606027,0.91174,3405.0,3404.8,3.50216]
[1735533606228,0.6174,3405.0,3404.8,3.50216]
[1735533606428,0.6174,3405.0,3404.8,3.2078]
[1735533606633,0.29435,3404.9,3404.8,3.2078]
[1735533606938,0.6174,3405.0,3404.8,3.2078]
[1735533607129,0.91175,3405.0,3404.8,3.2078]
[1735533607431,0.29435,3404.9,3404.8,3.2078]
[1735533608425,0.91175,3405.0,3404.8,3.2078]
[1735533609229,0.29435,3404.9,3404.8,3.2078]
[1735533613646,0.29436,3404.8,3404.5,3.50218]
[1735533615452,0.29436,3404.8,3404.5,3.2078]
[1735533615653,0.6174,3405.0,3404.6,0.29438]
[1735533615956,0.29436,3404.9,3404.6,0.29438]
[1735533616346,0.29436,3404.9,3404.6,4.91035635]
[1735533616947,0.6174,3405.0,3404.9,0.29435]
[1735533617147,0.6023,3405.1,3405.0,0.29434]
[1735533618343,5.51326208,3405.3,3404.7,1.244]
[1735533618545,2.30546208,3405.4,3405.3,0.29432]
[1735533620047,3.2078,3405.8,3405.6,0.29428]
[1735533620247,3.2078,3405.8,3405.5,0.2943]
[1735533620545,3.2078,3405.8,3405.4,1.2569]
[1735533620745,3.2078,3405.8,3405.7,0.29428]
[1735533621145,2.30546208,3405.9,3405.8,0.29427]
[1735533621449,0.29427,3405.9,3405.6,3.50209]
[1735533621654,0.6043,3406.0,3405.8,0.29427]
[1735533624049,0.6043,3406.0,3405.9,0.29427]
[1735533625657,0.6043,3406.0,3405.8,0.29427]
[1735533626654,0.6043,3406.0,3405.9,0.29427]
[1735533627955,0.6105,3406.1,3406.0,0.29426]
[1735533629458,0.6105,3406.1,3405.8,4.61597635]
[1735533629657,0.6105,3406.1,3405.9,0.29426]
[1735533630253,0.6105,3406.1,3405.8,4.61597635]
[1735533630562,0.6105,3406.1,3406.0,0.29426]
[1735533632362,0.6105,3406.1,3405.6,7.82377635]
[1735533632663,0.29426,3406.0,3405.6,7.82377635]
[1735533632857,0.29426,3406.0,3405.8,0.29427]
[1735533638366,0.6105,3406.1,3405.6,3.2078]
[1735533638666,0.29428,3405.7,3405.6,3.2078]
[1735533639466,0.91118,3405.7,3405.6,3.2078]
[1735533640066,0.29429,3405.6,3405.5,4.61527826]
[1735533640267,0.85109,3405.6,3405.5,3.73177826]
[1735533640664,0.29431,3405.4,3405.0,3.2078]
[1735533640866,0.29433,3405.1,3405.0,3.2078]
[1735533641159,2.36004893,3405.5,3404.7,6.92291739]
[1735533641360,0.29436,3404.8,3404.7,6.92291739]
[1735533642168,0.29436,3404.8,3404.6,3.2078]
[1735533643564,0.577,3404.9,3404.6,3.2078]
[1735533643766,0.549,3404.8,3404.6,3.2078]
[1735533643963,0.84337,3404.8,3404.6,3.2078]
[1735533645465,0.29437,3404.7,3404.6,3.2078]
[1735533645665,0.2944,3404.4,3404.3,16.4302]
[1735533645971,0.2944,3404.3,3404.2,3.2078]
[1735533646168,1.1219,3404.3,3404.2,3.2078]
[1735533646865,1.4163,3404.3,3404.2,3.2078]
[1735533652770,1.1219,3404.3,3404.2,3.2078]
[1735533653979,1.4163,3404.3,3404.2,3.2078]
[1735533654274,1.1219,3404.3,3404.2,3.2078]
[1735533654675,1.4163,3404.3,3404.2,3.2078]
[1735533657074,0.2944,3404.4,3404.2,3.2078]
[1735533657775,1.1035,3404.7,3404.2,3.2078]
[1735533657974,0.2944,3404.3,3404.2,3.2078]
[1735533658676,1.1035,3404.7,3404.2,3.2078]
[1735533658878,1.39787,3404.7,3404.4,0.29439]
[1735533659282,1.1035,3404.7,3404.5,0.5644]
[1735533659481,1.1035,3404.7,3404.2,3.2078]
[1735533659482,1.1035,3404.7,3404.2,3.50221]
[1735533659681,1.1035,3404.7,3404.2,3.2078]
[1735533659977,0.2944,3404.3,3404.2,3.2078]
[1735533662171,2.36004893,3404.6,3404.0,3.7722]
[1735533662378,0.5482,3404.2,3404.0,3.7722]
[1735533662574,0.5482,3404.2,3403.6,3.7805]
[1735533662774,0.5848,3404.1,3403.7,0.5512]
[1735533662974,1.1156,3404.1,3403.7,0.5512]
[1735533663772,0.29445,3403.8,3403.7,0.5512]
[1735533663975,1.1156,3404.1,3403.2,3.7422]
[1735533663976,0.29448,3403.5,3403.2,3.7422]
[1735533664176,0.29448,3403.5,3403.2,3.759]
[1735533664681,0.84266,3403.7,3403.4,0.29448]
[1735533665580,0.29447,3403.6,3403.3,0.29449]
[1735533666085,0.29447,3403.6,3403.4,0.29448]
[1735533667482,0.29447,3403.6,3403.3,0.29449]
[1735533667682,0.29447,3403.6,3403.4,0.29448]
[1735533669187,0.29445,3403.8,3403.6,0.29446]
[1735533669379,0.29444,3403.9,3403.7,0.5869]
[1735533669584,0.29444,3403.9,3403.8,0.545]
[1735533670987,1.1156,3404.1,3403.4,0.29448]
[1735533671183,1.1156,3404.1,3403.3,1.1319]
[1735533671389,0.29447,3403.6,3403.3,1.42639]
[1735533671591,1.1156,3404.1,3403.3,1.1319]
[1735533671786,0.29447,3403.6,3403.3,1.42639]
[1735533672085,0.29445,3403.8,3403.5,0.29447]
[1735533673086,0.55,3404.0,3403.3,1.1319]
[1735533673284,0.29444,3403.9,3403.6,0.29446]
[1735533675689,0.29446,3403.7,3403.4,0.29448]
[1735533675886,0.55,3404.0,3403.3,1.1319]
[1735533676087,0.29445,3403.8,3403.5,0.29447]
[1735533677290,0.29444,3403.9,3403.6,0.29446]
[1735533677592,3.2078,3404.2,3404.0,0.29443]
[1735533677990,3.2078,3404.2,3404.1,0.5585]
[1735533678386,0.29441,3404.3,3404.1,0.5585]
[1735533678591,0.2944,3404.4,3404.1,4.06072]
[1735533678786,0.29441,3404.3,3404.1,3.7663]
[1735533678993,0.2944,3404.4,3404.1,4.06072]
[1735533679188,1.6519,3404.6,3404.1,3.7663]
[1735533679395,0.29441,3404.3,3404.1,3.7663]
[1735533681689,0.29441,3404.2,3404.1,3.7663]
[1735533681998,0.29441,3404.2,3404.1,3.2078]
[1735533685991,0.29444,3403.9,3403.6,0.29446]
[1735533686192,0.29446,3403.8,3403.5,8.85888739]
[1735533686394,0.85726,3403.8,3403.5,8.85888739]
[1735533686593,0.85725,3403.8,3403.5,7.75608739]
[1735533686794,0.29446,3403.7,3403.5,7.46161739]
[1735533686995,0.85725,3403.8,3403.5,7.75608739]
[1735533687492,0.85725,3403.8,3403.5,0.83317]
[1735533687695,0.5628,3403.8,3403.6,0.29446]
[1735533688895,0.29444,3403.9,3403.6,0.29447]
[1735533689094,0.29444,3403.9,3403.7,0.527]
[1735533691998,0.29445,3403.8,3403.7,0.527]
[1735533692395,0.29445,3403.8,3403.6,0.29446]
[1735533693202,2.59899268,3403.8,3403.6,0.29446]
[1735533693801,2.30454268,3403.8,3403.6,0.29446]
[1735533695104,2.59899268,3403.8,3403.6,0.29446]
[1735533695803,2.59899268,3403.8,3403.6,7.21737739]
[1735533695804,0.29445,3403.8,3403.6,7.21737739]
[1735533697705,0.29445,3403.8,3403.6,0.29446]
[1735533698409,2.30454268,3403.9,3403.5,7.46161739]
[1735533698597,0.29445,3403.8,3403.5,7.75608739]
[1735533699511,2.30454268,3403.9,3403.5,7.75608739]
[1735533699911,0.29445,3403.8,3403.5,7.75608739]
[1735533700213,2.59899268,3403.8,3403.5,0.83317]
[1735533701915,2.59899268,3403.8,3403.6,0.29446]
[1735533702413,0.29446,3403.7,3403.5,0.83317]
[1735533702607,2.30454268,3403.8,3403.5,0.5387]
[1735533702807,0.5474,3403.6,3403.5,0.83317]
[1735533703918,0.5474,3403.6,3403.5,5.1963775]
[1735533706821,0.5474,3403.6,3403.5,12.11929489]
[1735533708222,0.84187,3403.6,3403.5,11.28612489]
[1735533708525,2.42849681,3403.6,3403.5,11.28612489]
[1735533708717,2.95349681,3403.6,3403.5,11.28612489]
[1735533710118,0.29447,3403.5,3403.4,3.2078]
[1735533710514,2.65902681,3403.6,3403.4,3.2078]
[1735533710718,0.5474,3403.6,3403.5,1.33299681]
[1735533710924,3.45681402,3403.7,3403.6,0.29447]
[1735533711125,1.41304,3403.9,3403.7,0.29446]
[1735533711325,1.41304,3403.9,3403.8,0.5501]
[1735533712522,3.2078,3404.2,3404.0,0.29442]
[1735533713426,7.83596773,3404.2,3404.0,0.29442]
[1735533714324,2.31428476,3404.1,3404.0,0.29442]
[1735533715526,2.31428476,3404.1,3404.0,4.65896014]
[1735533717130,2.31428476,3404.1,3404.0,4.36454014]
[1735533717331,3.14800476,3404.1,3404.0,4.36454014]
[1735533718231,0.83372,3404.1,3404.0,4.36454014]
[1735533718432,0.5393,3404.1,3404.0,4.36454014]
[1735533719428,0.5393,3404.1,3404.0,11.31172694]
[1735533719931,0.5393,3404.1,3404.0,11.60615694]
[1735533721531,0.5393,3404.1,3404.0,11.31172694]
[1735533721835,0.83372,3404.1,3404.0,11.31172694]
[1735533722135,6.40360357,3404.1,3404.0,4.36454014]
[1735533723440,11.179185,3404.1,3403.5,6.9471868]
[1735533723730,0.29446,3403.6,3403.5,6.9471868]
[1735533725031,2.60784087,3403.6,3403.3,10.4494768]
[1735533725232,1.128,3403.5,3403.3,10.4494768]
[1735533726137,1.128,3403.5,3403.4,4.36415158]
[1735533727041,2.31338087,3403.6,3403.4,4.36415158]
[1735533727230,2.31338087,3403.7,3403.5,0.29447]
[1735533727436,2.31338087,3403.7,3403.6,4.04816]
[1735533727638,2.31338087,3403.7,3403.6,19.94816]
[1735533728340,3.18259087,3404.3,3403.6,44.32350493]
[1735533728543,0.86921,3404.3,3404.1,0.29442]
[1735533728737,0.86921,3404.3,3404.0,3.50223]
[1735533729239,0.5748,3404.3,3404.1,0.29441]
[1735533730342,0.5748,3404.3,3404.1,4.65784535]
[1735533730343,2.88796108,3404.3,3404.1,4.65784535]
[1735533730641,0.29441,3404.2,3404.1,4.36343535]
[1735533731043,3.18237108,3404.3,3404.1,4.36343535]
[1735533731439,3.18237108,3404.3,3404.0,7.23893606]
[1735533733041,3.18237108,3404.3,3404.0,0.29443]
[1735533733541,2.88796108,3404.3,3404.1,0.29442]
[1735533734740,2.88796108,3404.3,3404.0,0.5297]
[1735533734942,2.31316108,3404.3,3404.2,0.29441]
[1735533735443,4.2437,3405.1,3404.5,0.29439]
[1735533735638,0.29436,3404.9,3404.7,3.2078]
[1735533735838,1.0359,3405.1,3404.7,3.2078]
[1735533736042,1.0359,3405.1,3404.9,0.29435]
[1735533736339,3.46924968,3405.0,3404.9,0.29435]
[1735533737245,3.46924968,3405.0,3404.8,0.5216]
[1735533737547,3.46924968,3405.0,3404.8,0.81595]
[1735533737846,1.0359,3405.1,3404.8,0.81595]
[1735533738844,1.0359,3405.1,3404.8,0.5216]
[1735533739146,0.29435,3404.9,3404.8,0.5216]
[1735533739539,0.29435,3405.0,3404.8,0.5216]
[1735533739739,0.29435,3405.0,3404.7,0.29437]
[1735533742244,1.33024,3405.1,3404.8,0.29436]
[1735533742641,0.29434,3405.0,3404.7,3.50217]
[1735533743042,0.29434,3405.0,3404.8,0.29436]
[1735533743949,0.29434,3405.0,3404.7,3.2078]
[1735533744149,0.29434,3405.0,3404.7,3.50216]
[1735533744345,1.0359,3405.1,3404.7,3.2078]
[1735533744553,0.29435,3405.0,3404.7,0.29436]
[1735533745345,1.33024,3405.1,3404.8,0.29436]
[1735533746846,1.0359,3405.1,3404.8,0.29436]
[1735533747050,0.29434,3405.0,3404.8,0.29436]
[1735533747652,1.33024,3405.1,3404.8,0.29436]
[1735533748344,0.5225,3405.1,3404.7,3.2078]
[1735533748544,3.13335228,3405.4,3404.8,0.4836]
[1735533748749,3.65455228,3405.4,3405.1,0.29433]
[1735533749056,3.36024228,3405.4,3404.8,1.0121]
[1735533749255,3.36024228,3405.4,3404.9,0.29435]
[1735533749447,0.29433,3405.2,3404.9,0.29435]
[1735533749647,0.29433,3405.2,3404.8,1.0121]
[1735533749850,0.29433,3405.2,3405.0,0.29434]
[1735533750548,1.0482,3405.4,3404.8,1.0121]
[1735533750752,0.29432,3405.3,3405.1,0.29433]
[1735533751555,1.0482,3405.4,3404.8,1.0121]
[1735533751855,2.31204228,3405.7,3405.1,3.2078]
[1735533752055,0.9679,3405.6,3405.5,0.29429]
[1735533752763,0.9679,3405.6,3405.3,0.4814]
[1735533752953,1.2622,3405.6,3405.3,0.77571]
[1735533753148,1.2622,3405.6,3405.2,0.5221]
[1735533753454,0.2943,3405.5,3405.2,0.81642]
[1735533753859,0.9679,3405.6,3405.2,0.5221]
[1735533754061,1.2622,3405.6,3405.3,0.29432]
[1735533755061,0.9679,3405.6,3405.3,0.29432]
[1735533755361,0.29431,3405.4,3405.2,0.5221]
[1735533755954,0.29431,3405.4,3405.2,0.29432]
[1735533756158,0.29432,3405.3,3405.1,3.2078]
[1735533756966,0.29431,3405.4,3405.2,0.29433]
[1735533757861,0.29431,3405.4,3405.1,3.50213]
[1735533758063,0.9679,3405.6,3405.1,3.2078]
[1735533758263,1.2622,3405.6,3405.3,0.29431]
[1735533761770,3.50208,3405.8,3405.5,0.2943]
[1735533761976,0.9664,3405.7,3405.4,0.2943]
[1735533762175,0.9664,3405.7,3405.5,0.29429]
[1735533762677,1.26069,3405.7,3405.4,0.2943]
[1735533762869,0.2943,3405.6,3405.3,0.29431]
[1735533763471,0.9664,3405.7,3405.4,0.2943]
[1735533763679,1.26069,3405.7,3405.5,0.4839]
[1735533764076,0.9664,3405.7,3405.5,0.4839]
[1735533764281,0.9664,3405.7,3405.2,0.511]
[1735533764471,0.2943,3405.6,3405.4,0.29431]
[1735533764677,0.2943,3405.5,3405.3,0.29431]
[1735533764877,0.9664,3405.7,3405.2,0.4839]
[1735533765079,0.2943,3405.5,3405.3,0.29432]
[1735533766184,0.29431,3405.4,3405.2,0.77822]
[1735533766376,0.29431,3405.5,3405.3,0.29432]
[1735533767185,0.29431,3405.5,3405.2,0.77822]
[1735533767580,0.29431,3405.4,3405.2,0.77822]
[1735533768878,0.9664,3405.7,3405.1,0.29433]
[1735533769083,0.29429,3405.6,3405.0,3.2078]
[1735533769282,3.32848357,3405.7,3405.0,3.2078]
[1735533769484,0.29433,3405.2,3405.0,3.2078]
[1735533769688,1.0207,3405.1,3405.0,3.2078]
[1735533769986,1.31503,3405.1,3405.0,3.2078]
[1735533770786,1.31503,3405.1,3404.8,0.82206]
[1735533770989,0.29435,3405.0,3404.8,0.5277]
[1735533771284,0.79555,3405.0,3404.8,0.5277]
[1735533771680,0.79555,3405.0,3404.8,0.82206]
[1735533772283,0.5012,3405.0,3404.8,0.82206]
[1735533772488,1.0207,3405.1,3405.0,0.29434]
[1735533773186,1.0207,3405.1,3404.9,0.29434]
[1735533773783,2.31204228,3405.5,3404.8,0.5277]
[1735533773983,2.31204228,3405.5,3405.4,3.50211]
[1735533774389,2.31204228,3405.5,3405.4,5.02941]
[1735533774590,2.31204228,3405.5,3405.4,20.92941]
[1735533775286,5.81408228,3406.3,3406.0,0.29425]
[1735533776483,2.60628228,3406.3,3406.0,3.50205]
[1735533776684,0.29424,3406.3,3406.0,3.50205]
[1735533777592,0.29423,3406.4,3406.0,3.50205]
[1735533778191,3.58646228,3406.5,3406.1,0.29424]
[1735533778391,3.29224228,3406.5,3406.2,0.29423]
[1735533778592,3.29224228,3406.5,3406.3,0.29423]
[1735533779595,0.9802,3406.5,3406.3,0.29423]
[1735533781295,1.27442,3406.5,3406.1,0.5253]
[1735533781497,0.29423,3406.4,3406.0,8.12001427]
[1735533781795,0.29424,3406.3,3406.0,7.82576427]
[1735533781995,0.29425,3406.1,3406.0,7.82576427]
[1735533782494,0.29426,3406.0,3405.7,4.91224427]
[1735533782695,0.511,3405.9,3405.7,4.91224427]
[1735533783395,0.511,3405.9,3405.8,0.29427]
[1735533783986,0.511,3405.9,3405.6,0.29429]
[1735533784193,0.80527,3405.9,3405.6,0.29429]
[1735533784796,0.29428,3405.8,3405.5,8.12006427]
[1735533784994,0.511,3405.9,3405.7,0.29428]
[1735533785195,0.511,3405.9,3405.8,0.29427]
[1735533786202,0.511,3405.9,3405.7,0.29428]
[1735533787798,0.511,3405.9,3405.6,0.29429]
[1735533788003,0.511,3405.9,3405.8,0.29427]
[1735533788302,0.511,3405.9,3405.7,0.29428]
[1735533789098,0.511,3405.9,3405.5,3.2078]